fUSD/lending_fUSD_20250106
["ID","MTS","AMOUNT","RATE_DAILY","PERIOD"]
[347840015,1736146267192,-500.0,0.00011917,2]
[347840016,1736146267202,-4772.46,0.00011917,2]
[347840017,1736146267211,-4343.04,0.00011917,2]
[347840018,1736146267221,-500.0,0.00011917,2]
[347840019,1736146267230,-500.0,0.00011917,2]
[347840020,1736146267240,-1700.1,0.00011917,2]
[347840021,1736146267249,-1677.41,0.00011917,2]
[347840022,1736146267258,-500.0,0.00011917,2]
[347840023,1736146267268,-1979.36,0.00011917,2]
[347840024,1736146267277,-500.0,0.00011917,2]
[347840025,1736146267287,-500.0,0.00011917,2]
[347840026,1736146267297,-637.75,0.00011917,2]
[347840027,1736146267306,-2912.5,0.00011917,2]
[347840028,1736146267315,-2622.3,0.00011917,2]
[347840029,1736146267326,-500.0,0.00011917,2]
[347840030,1736146267335,-758.31,0.00011917,2]
[347840031,1736146267344,-500.0,0.00011917,2]
[347840032,1736146267354,-500.0,0.00011917,2]
[347840033,1736146267364,-500.0,0.00011917,2]
[347840034,1736146267373,-201.18,0.00011917,2]
[347840035,1736146267382,-500.0,0.00011917,2]
[347840036,1736146267392,-500.0,0.00011951,2]
[347840037,1736146267402,-500.0,0.00011951,2]
[347840038,1736146267411,-1107.86,0.00011951,2]
[347840039,1736146267420,-526.06,0.00011951,2]
[347840040,1736146267430,-4758.37,0.00011951,2]
[347840041,1736146267439,-500.0,0.00011951,2]
[347840042,1736146267449,-556.63,0.00011951,2]
[347840043,1736146267459,-1493.4,0.00011951,2]
[347840044,1736146267468,-2244.15,0.00011951,2]
[347840045,1736146267478,-632.11,0.00011951,2]
[347840046,1736146267487,-500.0,0.00011951,2]
[347840047,1736146267497,-1083.83,0.00011951,2]
[347840048,1736146267507,-1023.4,0.00011951,2]
[347840049,1736146267517,-433.0,0.00011976,2]
[347840050,1736146267526,-1933.95958532,0.0001199,2]
[347840051,1736146267535,-38000.46692531,0.00011999,2]
[347840052,1736146267544,-500.0,0.00011999,2]
[347840053,1736146267553,-13153.3065851,0.00012,3]
[347840054,1736146267563,-2078.6951027,0.00012,2]
[347840055,1736146267572,-25000.0,0.00012,2]
[347840056,1736146267582,-500.14812597,0.00012,3]
[347840057,1736146267591,-130272.0,0.00012,2]
[347840058,1736146267600,-638.15166445,0.00012,2]
[347840059,1736146267609,-51191.85510126,0.00012,4]
[347840060,1736146267618,-15400.74,0.00012,4]
[347840061,1736146267627,-1392.13784113,0.00012,2]
[347840062,1736146268032,-1172.59846955,0.00012,2]
[347840063,1736146268041,-42215.17349696,0.00012,2]
[347840064,1736146268061,-1066.96799372,0.00012,2]
[347840065,1736146268072,-23035.27095659,0.00012,2]
[347840066,1736146268083,-546.92848247,0.00012,2]
[347840067,1736146268094,-565.97656219,0.00012,2]
[347840068,1736146268105,-544.38170658,0.00012,2]
[347840069,1736146268123,-500.0,0.00010033,2]
[347840070,1736146268132,-6740.21721996,0.00012,2]
[347840071,1736146268329,-918.7,0.0001,2]
[347840072,1736146268340,-995.56,0.0001,2]
[347840073,1736146268363,-1219.61553686,0.0001,2]
[347840074,1736146268381,-3578.50931283,0.0001,2]
[347840075,1736146268399,-407.5820148,0.0001,2]
[347840076,1736146268443,-2016.5,0.0001,2]
[347840077,1736146268970,-23417.15177261,0.0001,2]
[347840078,1736146268986,-2952.81314955,0.0001,2]
[347840079,1736146269000,-502.05387292,0.00010134,2]
[347840080,1736146269013,-502.73569497,0.00010134,2]
[347840081,1736146269025,-500.0,0.00010307,2]
[347840082,1736146269038,-597.01,0.0001041,2]
[347840083,1736146269054,-500.0,0.00010547,2]
[347840084,1736146269067,-500.0,0.00010581,2]
[347840085,1736146269081,-597.01,0.00010684,2]
[347840086,1736146269094,-500.0,0.00010821,2]
[347840087,1736146269106,-500.0,0.00010855,2]
[347840088,1736146269120,-597.01,0.00010958,2]
[347840089,1736146269133,-500.0,0.00011095,2]
[347840090,1736146269147,-500.0,0.00011129,2]
[347840091,1736146269160,-597.01,0.00011232,2]
[347840092,1736146269175,-500.0,0.00011369,2]
[347840093,1736146269187,-500.0,0.00011403,2]
[347840094,1736146269196,-597.01,0.00011506,2]
[347840095,1736146269206,-500.0,0.00011643,2]
[347840096,1736146269216,-194.0,0.00011677,2]
[347840097,1736146269226,-35151.76558787,0.00012,2]
[347840098,1736146269235,-653.65674211,0.00012,6]
[347840099,1736146269247,-900.10574579,0.00012,6]
[347840100,1736146269258,-975.93,0.00012,6]
[347840101,1736146269270,-1311.6373174,0.00012,6]
[347840102,1736146269282,-317.92,0.00012,6]
[347840103,1736146270029,-349.33,9.999e-05,2]
[347840104,1736146270039,-317.74810223,0.00010134,2]
[347840105,1736146270050,-1103.0,0.00011308,2]
[347840106,1736146270060,-434.96192885,0.0001178,2]
[347840107,1736146270072,-162.04807115,0.0001178,2]
[347840108,1736146270081,-500.0,0.00011917,2]
[347840109,1736146270091,-2126.27292927,0.00012,6]
[347840110,1736146270102,-330.49842,0.00012,6]
[347840111,1736146270120,-2412.78510096,0.00012,6]
[347840112,1736146270737,-1000.61991303,0.00023785,2]
[347840113,1736146270761,-1467.14821605,0.00023785,10]
[347840114,1736146270786,-693.39271957,0.00023785,10]
[347840115,1736146270812,-2202.81043219,0.00023785,10]
[347840116,1736146270837,-2233.03677334,0.00023785,10]
[347840117,1736146270862,-1000.0,0.00023785,10]
[347840118,1736146270887,-500.0,0.00023785,10]
[347840119,1736146270913,-269.70745137,0.00023785,10]
[347840120,1736146270937,-2500.0,0.00023785,15]
[347840121,1736146270963,-199280.29094942,0.00023785,2]
[347840122,1736146270987,-5606.62770845,0.00023785,2]
[347840123,1736146271012,-1007.45388538,0.00023785,15]
[347840124,1736146271036,-300.0,0.00023785,15]
[347840125,1736146271065,-7147.36804558,0.00023785,7]
[347840126,1736146271089,-162.32494359,0.00023785,2]
[347840127,1736146271113,-587.38813825,0.00023785,2]
[347840128,1736146271138,-553.52289113,0.00023785,5]
[347840129,1736146271162,-10463.49328351,0.00023785,3]
[347840130,1736146271187,-1955.944797,0.00023785,5]
[347840131,1736146271210,-5118.66698201,0.00023785,2]
[347840132,1736146271234,-961.97559946,0.00023785,5]
[347840133,1736146271258,-859.61750147,0.00023785,5]
[347840134,1736146271282,-1246.00463062,0.00023785,2]
[347840135,1736146271306,-7623.13864992,0.00023785,2]
[347840136,1736146271329,-583.08037694,0.00023785,5]
[347840137,1736146271355,-9124.00727637,0.00023785,2]
[347840138,1736146271379,-3378.39037601,0.00023785,2]
[347840139,1736146271403,-12677.78299217,0.00023785,2]
[347840140,1736146271430,-14664.11959574,0.00023785,3]
[347840141,1736146271455,-18628.22202837,0.00023785,5]
[347840142,1736146271480,-94319.46637215,0.00023785,2]
[347840143,1736146271503,-1264.03211611,0.00023785,4]
[347840144,1736146271527,-112076.76918122,0.00023785,4]
[347840145,1736146271552,-215.4367099,0.00023785,5]
[347840146,1736146271577,-41422.03714192,0.00023785,2]
[347840147,1736146271601,-4949.40460045,0.00023785,2]
[347840148,1736146271625,-4637.03968377,0.00023785,2]
[347840149,1736146271649,-14591.93085024,0.00023785,2]
[347840150,1736146271672,-294.75751377,0.00023785,2]
[347840151,1736146271696,-6672.52357721,0.00023785,4]
[347840152,1736146271719,-279.20746541,0.00023785,2]
[347840153,1736146271743,-1210.0,0.00023785,2]
[347840154,1736146271767,-694.44993755,0.00023785,2]
[347840155,1736146271791,-343.90450544,0.00023785,2]
[347840156,1736146271821,-609.53728318,0.00023785,6]
[347840157,1736146271845,-752.02370274,0.00023785,2]
[347840158,1736146271869,-1501.54727453,0.00023785,2]
[347840159,1736146271895,-1016.56234354,0.00023785,2]
[347840160,1736146271919,-96499.23020232,0.00023785,10]
[347840161,1736146271943,-521.80383948,0.00023785,7]
[347840162,1736146271969,-2424.25147662,0.00023785,2]
[347840163,1736146271993,-1218.30839384,0.00023785,15]
[347840164,1736146272023,-1028.46513767,0.00023785,2]
[347840165,1736146272048,-1295.25873399,0.00023785,2]
[347840166,1736146272076,-1897.91203055,0.00023785,2]
[347840167,1736146272327,-181.81404079,0.00023785,2]
[347840168,1736146272354,-643.0,0.00023785,2]
[347840169,1736146272379,-958.42747637,0.00023785,2]
[347840170,1736146272405,-566.08128212,0.00023785,2]
[347840171,1736146272430,-1815.20569194,0.00023785,2]
[347840172,1736146272455,-3205.23994434,0.00023785,2]
[347840173,1736146272481,-173.31626322,0.00023785,2]
[347840174,1736146272505,-550.0,0.00023785,2]
[347840175,1736146272531,-1449.18169302,0.00023785,2]
[347840176,1736146272557,-996.17869402,0.00023785,2]
[347840177,1736146272582,-943.39440059,0.00023785,2]
[347840178,1736146272607,-10579.17890122,0.00023785,2]
[347840179,1736146272632,-144434.61163382,0.00023785,2]
[347840180,1736146272661,-226.19332988,0.00023785,2]
[347840181,1736146272686,-171.66235221,0.00023785,2]
[347840182,1736146272712,-1452.84315739,0.00023785,2]
[347840183,1736146272737,-1021.02008172,0.00023785,2]
[347840184,1736146272762,-556.51358215,0.00023785,2]
[347840185,1736146272786,-150.0,0.00023785,2]
[347840186,1736146272816,-1509.37156499,0.00023785,2]
[347840187,1736146272843,-618.91968331,0.00023785,2]
[347840188,1736146272869,-212.16999511,0.00023785,2]
[347840189,1736146272896,-444.47259816,0.00023785,2]
[347840190,1736146272922,-1054.77827181,0.00023785,2]
[347840191,1736146272946,-20554.42913128,0.00023785,2]
[347840192,1736146325829,286.66,0.00017,60]
[347840194,1736146568707,228.469005,0.000196,120]
[347840195,1736146708751,228.469005,0.000196,120]
[347840386,1736147432518,-477.3,8.219e-05,2]
[347840388,1736147432528,-140.97929359,9.296e-05,2]
[347840393,1736147432564,-451.72001,9.296e-05,2]
[347840394,1736147432576,-342.66394392,9.296e-05,2]
[347840395,1736147432613,-64.63675249,9.296e-05,2]
[347840396,1736147432623,-650.55,9.344e-05,2]
[347840397,1736147432633,-250.0,9.432e-05,2]
[347840398,1736147432642,-250.0,9.553e-05,2]
[347840399,1736147432652,-294.9,9.591e-05,2]
[347840400,1736147432662,-150.0,9.898e-05,2]
[347840401,1736147432673,-500.0,9.899e-05,2]
[347840402,1736147432683,-1881.85662641,9.899e-05,2]
[347840403,1736147432751,-1080.6050125,9.899e-05,2]
[347840404,1736147432764,-1191.87,9.899e-05,2]
[347840405,1736147432893,-998.41284,9.899e-05,2]
[347840406,1736147438492,-2985.0,9.899e-05,2]
[347840603,1736147440723,-14049.4349589,9.899e-05,2]
[347840606,1736147440978,-2039.37593369,9.899e-05,2]
[347840623,1736147445072,-12880.0098285,9.899e-05,2]
[347840624,1736147445082,-1000.0,9.899e-05,2]
[347840625,1736147445093,-15975.9901715,9.899e-05,2]
[347840626,1736147445239,-5145.9152285,9.899e-05,2]
[347840627,1736147445251,-3982.1537,9.899e-05,2]
[347840628,1736147445264,-44243.7871,9.899e-05,2]
[347840629,1736147445274,-598.01,9.999e-05,2]
[347840630,1736147445285,-669.1,9.999e-05,2]
[347840631,1736147445294,-500.0,9.999e-05,2]
[347840632,1736147445304,-520.99789127,9.999e-05,2]
[347840633,1736147445314,-500.0,9.999e-05,2]
[347840634,1736147445325,-500.0,9.999e-05,2]
[347840635,1736147445334,-500.0,9.999e-05,2]
[347840636,1736147445345,-500.0,9.999e-05,2]
[347840637,1736147445355,-500.0,9.999e-05,2]
[347840638,1736147445364,-500.0,9.999e-05,2]
[347840639,1736147445375,-500.0,9.999e-05,2]
[347840640,1736147445385,-500.0,9.999e-05,2]
[347840641,1736147445395,-500.0,9.999e-05,2]
[347840642,1736147445405,-500.0,9.999e-05,2]
[347840643,1736147445415,-500.0,9.999e-05,2]
[347840644,1736147445424,-500.0,9.999e-05,2]
[347840645,1736147445434,-500.0,9.999e-05,2]
[347840646,1736147445444,-500.0,9.999e-05,2]
[347840647,1736147445454,-500.0,9.999e-05,2]
[347840648,1736147445463,-500.0,9.999e-05,2]
[347840649,1736147445473,-500.0,9.999e-05,2]
[347840650,1736147445482,-500.0,9.999e-05,2]
[347840651,1736147445492,-500.0,9.999e-05,2]
[347840652,1736147445502,-500.0,9.999e-05,2]
[347840653,1736147445512,-500.0,9.999e-05,2]
[347840654,1736147445522,-500.0,9.999e-05,2]
[347840655,1736147445532,-500.0,9.999e-05,2]
[347840656,1736147445542,-3498.19,9.999e-05,2]
[347840658,1736147445552,-500.0,9.999e-05,2]
[347840660,1736147445562,-500.0,9.999e-05,2]
[347840661,1736147445573,-500.0,9.999e-05,2]
[347840663,1736147445582,-500.0,9.999e-05,2]
[347840664,1736147445591,-611.78,9.999e-05,2]
[347840665,1736147445601,-500.0,9.999e-05,2]
[347840666,1736147445611,-560.8,9.999e-05,2]
[347840667,1736147445621,-500.0,9.999e-05,2]
[347840668,1736147445631,-512.6,9.999e-05,2]
[347840669,1736147445641,-1365.28,9.999e-05,2]
[347840670,1736147445651,-500.0,9.999e-05,2]
[347840671,1736147445661,-500.0,9.999e-05,2]
[347840672,1736147445671,-2334.74,9.999e-05,2]
[347840673,1736147445680,-500.0,9.999e-05,2]
[347840674,1736147445689,-500.0,9.999e-05,2]
[347840675,1736147445700,-500.0,9.999e-05,2]
[347840676,1736147445714,-1286.41,9.999e-05,2]
[347840677,1736147445724,-561.47,9.999e-05,2]
[347840678,1736147445733,-1923.02,9.999e-05,2]
[347840679,1736147445743,-865.97,9.999e-05,2]
[347840680,1736147445753,-877.24,9.999e-05,2]
[347840681,1736147445764,-1648.08,9.999e-05,2]
[347840682,1736147445774,-500.0,9.999e-05,2]
[347840683,1736147445784,-794.82114902,0.0001,2]
[347840684,1736147445795,-1522.9,0.0001,2]
[347840685,1736147445805,-158.19884768,0.0001,2]
[347840686,1736147445815,-158.19884761,0.0001,2]
[347840687,1736147445825,-500.0,0.00010033,2]
[347840688,1736147445834,-500.0,0.00010033,2]
[347840689,1736147445844,-500.0,0.00010033,2]
[347840690,1736147445854,-500.0,0.00010033,2]
[347840691,1736147445864,-500.0,0.00010033,2]
[347840692,1736147445874,-500.0,0.00010033,2]
[347840693,1736147445884,-500.0,0.00010033,2]
[347840694,1736147445893,-500.0,0.00010033,2]
[347840695,1736147445903,-500.0,0.00010033,2]
[347840696,1736147445912,-500.0,0.00010033,2]
[347840697,1736147445922,-548.31,0.00010033,2]
[347840698,1736147445932,-500.0,0.00010033,2]
[347840699,1736147445942,-500.0,0.00010033,2]
[347840700,1736147445952,-500.0,0.00010033,2]
[347840701,1736147445962,-500.0,0.00010033,2]
[347840702,1736147445972,-500.0,0.00010033,2]
[347840703,1736147445982,-500.0,0.00010033,2]
[347840704,1736147445992,-500.0,0.00010033,2]
[347840705,1736147446003,-500.0,0.00010033,2]
[347840706,1736147446016,-500.0,0.00010033,2]
[347840707,1736147446026,-500.0,0.00010033,2]
[347840708,1736147446036,-500.0,0.00010033,2]
[347840709,1736147446047,-500.0,0.00010033,2]
[347840710,1736147446057,-500.0,0.00010033,2]
[347840711,1736147446067,-158.19884761,0.00010067,2]
[347840712,1736147446078,-500.0,0.00010132,2]
[347840713,1736147446088,-3835.1,0.00010132,2]
[347840714,1736147446098,-520.4,0.00010132,2]
[347840715,1736147446109,-500.0,0.00010132,2]
[347840716,1736147446119,-500.0,0.00010132,2]
[347840717,1736147446129,-500.0,0.00010132,2]
[347840718,1736147446140,-500.0,0.00010132,2]
[347840719,1736147446150,-1181.0,0.00010132,2]
[347840720,1736147446159,-555.48666845,0.00010132,2]
[347840721,1736147446169,-623.76,0.00010132,2]
[347840722,1736147446179,-500.0,0.00010132,2]
[347840723,1736147446189,-1793.28,0.00010132,2]
[347840724,1736147446199,-1350.54,0.00010132,2]
[347840725,1736147446209,-502.68,0.00010132,2]
[347840726,1736147446219,-1392.65,0.00010132,2]
[347840727,1736147446229,-899.68,0.00010132,2]
[347840728,1736147446238,-500.0,0.00010132,2]
[347840729,1736147446251,-500.0,0.00010132,2]
[347840730,1736147446265,-861.34,0.00010132,2]
[347840731,1736147446275,-500.0,0.00010132,2]
[347840732,1736147446290,-1990.25,0.00010132,2]
[347840734,1736147446303,-812.01,0.00010132,2]
[347840735,1736147446319,-500.0,0.00010132,2]
[347840736,1736147446333,-500.0,0.00010132,2]
[347840737,1736147446345,-500.0,0.00010132,2]
[347840738,1736147446356,-500.0,0.00010132,2]
[347840739,1736147446369,-500.0,0.00010132,2]
[347840740,1736147446383,-500.0,0.00010132,2]
[347840741,1736147446396,-897.13,0.00010132,2]
[347840742,1736147446409,-617.62,0.00010132,2]
[347840743,1736147446421,-500.0,0.00010132,2]
[347840744,1736147446434,-500.0,0.00010132,2]
[347840745,1736147446446,-500.0,0.00010132,2]
[347840746,1736147446459,-880.98,0.00010132,2]
[347840747,1736147446471,-500.0,0.00010132,2]
[347840748,1736147446482,-1249.88,0.00010132,2]
[347840749,1736147446496,-500.0,0.00010132,2]
[347840750,1736147446513,-815.46,0.00010132,2]
[347840751,1736147446525,-500.0,0.00010132,2]
[347840752,1736147446537,-500.0,0.00010132,2]
[347840753,1736147446550,-500.0,0.00010132,2]
[347840754,1736147446563,-1478.91,0.00010132,2]
[347840755,1736147446576,-500.0,0.00010132,2]
[347840756,1736147446589,-614.73173801,0.00010133,2]
[347840757,1736147446602,-500.0,0.00010133,2]
[347840758,1736147446614,-500.0,0.00010133,2]
[347840759,1736147446627,-500.0,0.00010133,2]
[347840760,1736147446641,-500.0,0.00010133,2]
[347840761,1736147446652,-500.0,0.00010133,2]
[347840762,1736147446665,-500.0,0.00010133,2]
[347840763,1736147446676,-500.92240896,0.00010133,2]
[347840764,1736147446690,-500.0,0.00010133,2]
[347840765,1736147446702,-549.55280108,0.00010133,2]
[347840766,1736147446717,-578.14346154,0.00010133,2]
[347840767,1736147446730,-500.0,0.00010133,2]
[347840768,1736147446746,-500.0,0.00010133,2]
[347840769,1736147446762,-500.0,0.00010133,2]
[347840770,1736147446775,-500.0,0.00010133,2]
[347840771,1736147446787,-500.0,0.00010133,2]
[347840772,1736147446797,-501.01800449,0.00010133,2]
[347840773,1736147446808,-500.0,0.00010133,2]
[347840774,1736147446818,-500.0,0.00010133,2]
[347840775,1736147446832,-501.07829918,0.00010133,2]
[347840776,1736147446847,-500.0,0.00010133,2]
[347840777,1736147446857,-500.0,0.00010133,2]
[347840778,1736147446868,-500.0,0.00010133,2]
[347840780,1736147446879,-500.0,0.00010133,2]
[347840781,1736147446890,-500.0,0.00010133,2]
[347840782,1736147446902,-500.0,0.00010133,2]
[347840783,1736147446915,-500.0,0.00010133,2]
[347840784,1736147446928,-500.0,0.00010133,2]
[347840785,1736147446940,-500.0,0.00010133,2]
[347840786,1736147446951,-500.0,0.00010133,2]
[347840787,1736147446962,-500.0,0.00010133,2]
[347840788,1736147446973,-500.0,0.00010133,2]
[347840789,1736147446984,-500.0,0.00010133,2]
[347840790,1736147446995,-500.0,0.00010133,2]
[347840791,1736147447007,-500.0,0.00010133,2]
[347840792,1736147447019,-500.0,0.00010133,2]
[347840793,1736147447030,-500.0,0.00010133,2]
[347840794,1736147447041,-500.0,0.00010133,2]
[347840795,1736147447059,-526.86125262,0.00010133,2]
[347840796,1736147447071,-500.0,0.00010133,2]
[347840797,1736147447083,-500.0,0.00010133,2]
[347840798,1736147447095,-500.0,0.00010133,2]
[347840799,1736147447106,-278.55934201,0.00010133,2]
[347840800,1736147447117,-501.52986773,0.00010133,2]
[347840801,1736147447129,-500.0,0.00010133,2]
[347840802,1736147447141,-500.0,0.00010133,2]
[347840803,1736147447153,-500.0,0.00010133,2]
[347840804,1736147447164,-500.0,0.00010133,2]
[347840805,1736147447175,-500.0,0.00010133,2]
[347840806,1736147447187,-500.0,0.00010133,2]
[347840807,1736147447199,-500.0,0.00010133,2]
[347840808,1736147447210,-500.0,0.00010133,2]
[347840809,1736147447222,-500.0,0.00010133,2]
[347840810,1736147447233,-500.0,0.00010133,2]
[347840811,1736147447245,-500.0,0.00010133,2]
[347840812,1736147447257,-500.0,0.00010133,2]
[347840813,1736147447268,-500.0,0.00010133,2]
[347840814,1736147447281,-500.0,0.00010133,2]
[347840815,1736147447292,-500.0,0.00010133,2]
[347840816,1736147447304,-500.0,0.00010133,2]
[347840817,1736147447316,-500.0,0.00010133,2]
[347840818,1736147447327,-500.0,0.00010133,2]
[347840819,1736147447338,-500.0,0.00010133,2]
[347840820,1736147447350,-500.0,0.00010133,2]
[347840821,1736147447361,-500.0,0.00010133,2]
[347840822,1736147447372,-500.0,0.00010133,2]
[347840823,1736147447384,-500.0,0.00010133,2]
[347840824,1736147447396,-500.0,0.00010133,2]
[347840825,1736147447408,-500.0,0.00010133,2]
[347840826,1736147447419,-500.0,0.00010133,2]
[347840827,1736147447431,-500.0,0.00010133,2]
[347840828,1736147447443,-500.0,0.00010133,2]
[347840829,1736147447455,-500.0,0.00010133,2]
[347840830,1736147447467,-500.0,0.00010133,2]
[347840831,1736147447479,-500.0,0.00010133,2]
[347840832,1736147447491,-500.0,0.00010133,2]
[347840833,1736147447504,-500.0,0.00010133,2]
[347840834,1736147447520,-500.0,0.00010133,2]
[347840835,1736147447532,-500.0,0.00010133,2]
[347840836,1736147447544,-500.0,0.00010133,2]
[347840837,1736147447555,-500.0,0.00010133,2]
[347840838,1736147447567,-500.0,0.00010133,2]
[347840839,1736147447579,-500.0,0.00010133,2]
[347840840,1736147447591,-500.0,0.00010133,2]
[347840841,1736147447603,-500.0,0.00010133,2]
[347840842,1736147447615,-500.0,0.00010133,2]
[347840843,1736147447627,-500.0,0.00010133,2]
[347840844,1736147447639,-500.0,0.00010133,2]
[347840845,1736147447650,-500.0,0.00010133,2]
[347840846,1736147447662,-500.0,0.00010133,2]
[347840847,1736147447673,-500.0,0.00010133,2]
[347840848,1736147447686,-500.0,0.00010133,2]
[347840849,1736147447698,-500.0,0.00010133,2]
[347840850,1736147447714,-500.0,0.00010133,2]
[347840851,1736147447726,-500.0,0.00010133,2]
[347840852,1736147447737,-535.2679218,0.00010133,2]
[347840853,1736147447749,-500.0,0.00010133,2]
[347840854,1736147447762,-500.0,0.00010133,2]
[347840855,1736147447774,-500.0,0.00010133,2]
[347840856,1736147447786,-500.0,0.00010133,2]
[347840857,1736147447798,-500.0,0.00010133,2]
[347840858,1736147447809,-500.0,0.00010133,2]
[347840859,1736147447821,-500.0,0.00010133,2]
[347840860,1736147447833,-500.0,0.00010133,2]
[347840861,1736147447844,-1991.61,0.00010133,2]
[347840862,1736147447855,-500.0,0.00010133,2]
[347840863,1736147447866,-500.0,0.00010133,2]
[347840864,1736147447877,-500.0,0.00010133,2]
[347840865,1736147447888,-500.0,0.00010133,2]
[347840866,1736147447900,-500.0,0.00010133,2]
[347840867,1736147447911,-500.0,0.00010133,2]
[347840868,1736147447923,-500.0,0.00010133,2]
[347840869,1736147447935,-500.0,0.00010133,2]
[347840870,1736147447947,-500.0,0.00010133,2]
[347840871,1736147447958,-500.0,0.00010133,2]
[347840872,1736147447970,-2102.67,0.00010133,2]
[347840873,1736147447982,-500.0,0.00010133,2]
[347840874,1736147447993,-500.0,0.00010133,2]
[347840875,1736147448004,-500.0,0.00010133,2]
[347840876,1736147448016,-1165.22,0.00010133,2]
[347840877,1736147448027,-500.0,0.00010133,2]
[347840878,1736147448040,-285.41087316,0.00010133,2]
[347840879,1736147448219,-214.58912684,0.00010133,2]
[347840880,1736147448231,-500.0,0.00010133,2]
[347840881,1736147448242,-500.0,0.00010133,2]
[347840882,1736147448254,-500.0,0.00010133,2]
[347840883,1736147448267,-500.0,0.00010133,2]
[347840884,1736147448278,-500.0,0.00010133,2]
[347840885,1736147448290,-500.0,0.00010133,2]
[347840886,1736147448303,-500.0,0.00010133,2]
[347840887,1736147448315,-2272.26,0.00010133,2]
[347840888,1736147448327,-500.0,0.00010133,2]
[347840889,1736147448340,-1781.41,0.00010133,2]
[347840890,1736147448353,-500.0,0.00010133,2]
[347840891,1736147448364,-500.0,0.00010133,2]
[347840892,1736147448376,-500.0,0.00010133,2]
[347840893,1736147448388,-500.0,0.00010133,2]
[347840894,1736147448400,-500.0,0.00010133,2]
[347840895,1736147448411,-500.0,0.00010133,2]
[347840896,1736147448423,-500.0,0.00010133,2]
[347840897,1736147448434,-598.03652315,0.00010133,2]
[347840898,1736147448449,-425.15852991,0.00010133,2]
[347840899,1736147448465,-1421.05494694,0.00010133,2]
[347840900,1736147448475,-500.0,0.00010133,2]
[347840901,1736147448485,-383.82505306,0.00010133,2]
[347840906,1736147448870,-116.17494694,0.00010133,2]
[347840908,1736147448880,-500.0,0.00010133,2]
[347840910,1736147448889,-500.0,0.00010133,2]
[347840912,1736147448899,-500.0,0.00010133,2]
[347840914,1736147448910,-500.0,0.00010133,2]
[347840916,1736147448919,-500.0,0.00010133,2]
[347840918,1736147448929,-500.0,0.00010133,2]
[347840920,1736147448945,-500.0,0.00010133,2]
[347840922,1736147448955,-500.0,0.00010133,2]
[347840924,1736147448967,-500.0,0.00010133,2]
[347840926,1736147448977,-500.0,0.00010133,2]
[347840928,1736147448987,-500.0,0.00010133,2]
[347840930,1736147448996,-501.50981678,0.00010133,2]
[347840932,1736147449006,-500.0,0.00010133,2]
[347840935,1736147449017,-501.98440134,0.00010133,2]
[347840937,1736147449027,-500.00203952,0.00010133,2]
[347840939,1736147449037,-530.92923779,0.00010133,2]
[347840941,1736147449047,-416.59543003,0.00010133,2]
[347840943,1736147449059,-83.40456997,0.00010133,2]
[347840945,1736147449068,-500.0,0.00010133,2]
[347840947,1736147449077,-193.81248523,0.00010133,2]
[347840949,1736147449089,-121.24558885,0.00010133,2]
[347840951,1736147449099,-500.0,0.00010133,2]
[347840953,1736147449108,-500.0,0.00010133,2]
[347840954,1736147449118,-504.94944305,0.00010133,2]
[347840955,1736147449129,-500.0,0.00010133,2]
[347840956,1736147449138,-500.55061262,0.00010133,2]
[347840957,1736147449147,-501.95560519,0.00010133,2]